Cogmind - Beta 11.1 @@@ ROGUE MODE // 2022.05.13 @ 23:22:47 Player: Flowthing Result: Destroyed by H-77 Assassin with High-powered Shotgun Performance ------------- Evolutions (7) 3500 Regions Visited (18) 3600 Robots Destroyed (133) 665 Value Destroyed (3637) 3637 Prototype IDs (47) 940 Alien Tech Used (0) 0 Bonus (1370) 1370 TOTAL SCORE: 13712 Bonus ------- High Alert Combat Kills 131 Follower Combat Kills 939 Aligned with FarCom 300 Cogmind --------- Core Integrity 0/1300 Matter 300/300 Energy 99/100 System Corruption 27% Temperature Cool (0) Movement Core (50) Location -3/Research Parts ------- > --- POWER (1) -------- (None) > --- PROPULSION (4) --- (None) > --- UTILITY (14) ----- Enhanced Optical Array Advanced Signal Interpreter Advanced Signal Interpreter Advanced Signal Interpreter Terrain Scan Processor Terrain Scan Processor Improved Melee Analysis Suite Improved Target Analyzer Advanced Target Analyzer Hacking Suite Improved Hacking Suite > --- WEAPON (2) ------- Katana > --- INVENTORY (5) ---- Micro Antimatter Reactor Mini Drone Bay (0/3) Advanced Datajack Improved Remote Datajack Peak State ------------ > --- POWER ------------ Micro Nuclear Core > --- PROPULSION ------- Impulse Thruster Array Impulse Thruster Array > --- UTILITY ---------- Advanced Visual Processing Unit Enhanced Optical Array Advanced Signal Interpreter Advanced Signal Interpreter Advanced Signal Interpreter Advanced Terrain Scanner Terrain Scan Processor Terrain Scan Processor Improved Melee Analysis Suite Improved Target Analyzer Advanced Target Analyzer Advanced Transmission Jammer Hacking Suite Improved Hacking Suite > --- WEAPON ----------- Gamma Bomb Array Katana > --- INVENTORY -------- Micro Antimatter Reactor Mini Drone Bay Advanced Datajack Improved Remote Datajack Katana [Rating: 113] Favorites ----------- Power Micro Fission Core Engine Ion Engine Power Core Micro Fission Core Reactor Micro Antimatter Reactor Propulsion Advanced Treads Treads Advanced Treads Leg Aluminum Leg Wheel Armored Wheel Hover Unit Improved Antigrav System Flight Unit Improved VTOL Module Utility Medium Storage Unit Device Improved Sensor Array Storage Medium Storage Unit Processor Advanced Signal Interpreter Hackware Hacking Suite Protection Hardened Light Armor Plating Weapon Longsword +1 Energy Gun Improved EM Shotgun Energy Cannon Advanced Beam Cannon Ballistic Gun Enhanced Autogun Ballistic Cannon Heavy Gauss Cannon Launcher Gamma Bomb Array Special Weapon Improved Remote Datajack Slashing Weapon Longsword +1 Build | -11 -10 -9 -9 -9 -8 -8 -7 -7 -7 -7 -7 -6 -5 -5 -5 -4 -4 -3 ------- Run | Scr Mat Mat Min Exi Min Mat Fac Was Fac Low Low Fac Fac Was Fac Fac Ext Res Slots Evolved 14 | . . 2 . . . 2 2 . . . . 2 2 . . 2 . 2 Power . | . . . . . . . . . . . . . . . . . . . Propulsion 2 | . . 1 . . . 1 . . . . . . . . . . . . Utility 12 | . . 1 . . . 1 2 . . . . 2 2 . . 2 . 2 Weapon . | . . . . . . . . . . . . . . . . . . . Parts Attached 196 | . 11 19 5 1 5 26 12 6 6 1 2 16 16 2 5 10 19 34 Power 18 | . 1 1 2 1 . 1 1 1 . . . 2 2 . . 1 1 4 Engine 7 | . 1 1 2 1 . 1 . . . . . 1 . . . . . . Core 10 | . . . . . . . 1 1 . . . 1 2 . . 1 1 3 Reactor 1 | . . . . . . . . . . . . . . . . . . 1 Propulsion 51 | . 2 8 . . 1 5 5 . 1 . . 5 6 . . 3 5 10 Treads 11 | . 1 7 . . 1 2 . . . . . . . . . . . . Leg . | . . . . . . . . . . . . . . . . . . . Wheel 5 | . 1 1 . . . 3 . . . . . . . . . . . . Hover 4 | . . . . . . . . . . . . . . . . . . 4 Flight 31 | . . . . . . . 5 . 1 . . 5 6 . . 3 5 6 Utility 80 | . 3 4 . . . 5 5 3 5 1 2 8 7 2 5 6 8 16 Device 32 | . . . . . . . 3 1 3 1 2 1 1 2 4 3 5 6 Storage 5 | . 2 . . . . 2 . . 1 . . . . . . . . . Processor 18 | . 1 . . . . 1 1 . . . . 2 2 . 1 . 3 7 Hackware 18 | . . . . . . . 1 1 1 . . 5 4 . . 3 . 3 Protection 7 | . . 4 . . . 2 . 1 . . . . . . . . . . Artifact . | . . . . . . . . . . . . . . . . . . . Weapon 47 | . 5 6 3 . 4 15 1 2 . . . 1 1 . . . 5 4 Energy Gun 20 | . 4 5 2 . 2 6 . . . . . . . . . . 1 . Energy Cannon 3 | . . . . . . 1 . 2 . . . . . . . . . . Ballistic Gun 3 | . . . . . . 3 . . . . . . . . . . . . Ballistic Cannon 3 | . 1 . . . . . . . . . . . . . . . 2 . Launcher 4 | . . 1 1 . 1 . . . . . . . . . . . . 1 Special Weapon 3 | . . . . . . . . . . . . 1 1 . . . 1 . Impact Weapon . | . . . . . . . . . . . . . . . . . . . Slashing Weapon 11 | . . . . . 1 5 1 . . . . . . . . . 1 3 Piercing Weapon . | . . . . . . . . . . . . . . . . . . . Special Melee Weapon . | . . . . . . . . . . . . . . . . . . . Unidentified Prototypes 13 | . . . . . . 5 2 2 1 . . 2 . . . . . 1 Parts Lost 52 | . 1 3 2 . 4 3 . . 1 . . 1 2 . . 11 6 18 Power 4 | . . . 1 . . . . . . . . . . . . 1 . 2 Propulsion 18 | . . 1 . . 1 3 . . . . . . 1 . . 6 1 5 Utility 20 | . . . . . 1 . . . 1 . . 1 1 . . 4 4 8 Weapon 10 | . 1 2 1 . 2 . . . . . . . . . . . 1 3 Highest Loss Streak 10 | . 1 1 1 . 4 1 . . 1 . . 1 1 . . 10 2 8 To Critical Strikes . | . . . . . . . . . . . . . . . . . . . Average Slot Usage (%) 92 | . 97 98 99 100 88 95 86 92 91 92 92 97 94 94 94 90 59 80 Engine 5 | . 14 11 10 11 11 9 . . . . . . . . . . . . Core 2 | . . . . . . . 6 6 7 7 7 5 5 5 5 4 3 2 Treads 10 | . 8 21 22 22 30 22 1 . . . . . . . . . . . Wheel 4 | . 8 11 11 11 2 9 1 . . . . . . . . . . . Flight 10 | . . . . . . . 25 30 30 30 30 25 23 23 23 19 10 9 Device 3 | . . . . . . . 11 15 12 7 7 6 7 5 5 4 10 7 Storage 11 | . 18 22 22 22 22 18 3 . 4 7 7 6 5 5 5 4 . . Processor 11 | . 7 . . . . 9 13 15 15 15 15 13 14 17 17 12 14 35 Hackware 11 | . . . . . . . 2 9 11 15 15 25 28 29 29 38 14 14 Protection 4 | . . 10 11 11 1 8 7 5 . . . . . . . . . . Energy Gun 8 | . 16 21 21 22 20 12 1 . . . . . . . . . . . Ballistic Gun 1 | . 11 . . . . 3 1 . . . . . . . . . . . Slashing Weapon 2 | . . . . . . . 5 7 7 7 7 6 5 5 5 4 2 5 Naked Turns . | . . . . . . . . . . . . . . . . . . . Heaviest Build 142 | 13 41 48 48 46 46 142 142 17 21 19 20 23 24 20 19 19 24 22 Greatest Support 88 | 20 20 44 44 12 66 88 28 20 21 21 21 24 24 20 20 21 24 48 Greatest Overweight (x) 7 | . 2 3 3 3 3 5 5 . . . . 1 7 . . 2 1 1 Average Overweight (x) . | . . 2 2 3 . 2 . . . . . . . . . . . . Largest Inventory Capacity 25 | 8 15 15 15 15 15 25 25 5 10 10 10 10 10 10 10 10 5 5 Average Capacity 11 | 8 10 15 15 15 15 18 9 5 8 10 10 10 10 10 10 9 5 5 Most Carried 24 | 6 12 15 15 15 15 24 24 5 10 10 10 10 10 9 10 9 5 5 Average Carried 10 | 6 7 14 14 15 13 17 8 4 6 10 10 9 8 9 9 7 4 4 Final Capacity 25 | 8 15 15 15 15 15 25 5 5 10 10 10 10 10 10 10 5 5 5 Final Carried 24 | 6 12 15 15 15 13 24 5 5 10 10 10 10 9 9 10 5 5 4 Class Distribution -------------------- 48% | Mutant 22% | Hacker-Scout 12% | Wizard-Scout 3% | Hacker-Ninja 3% | Scout Dominant Class ---------------- Mutant | -10/Materials Mutant | -9/Materials Mutant | -9/Mines Mutant | -9/Exiles Mutant | -8/Mines Mutant | -8/Materials Scout | -7/Factory Scout | -7/Waste Hacker-Scout | -7/Factory Hacker-Scout | -7/Lower Caves Hacker-Scout | -7/Lower Caves Hacker-Scout | -6/Factory Hacker-Scout | -5/Factory Wizard-Scout | -5/Waste Wizard-Scout | -5/Factory Wizard-Scout | -4/Factory Hacker-Scout | -4/Extension Scavenger-Scout | -3/Research Resources | -11 -10 -9 -9 -9 -8 -8 -7 -7 -7 -7 -7 -6 -5 -5 -5 -4 -4 -3 ----------- Run | Scr Mat Mat Min Exi Min Mat Fac Was Fac Low Low Fac Fac Was Fac Fac Ext Res Matter Collected 2434 | 200 74 260 90 . 62 370 23 157 55 . 30 169 122 . 55 156 274 337 Remotely . | . . . . . . . . . . . . . . . . . . . Salvage Created 5480 | . 383 1228 786 . 275 941 23 . 98 . . 158 416 . 97 278 321 476 Parts 328 | . 36 77 40 . 14 35 3 . 12 . . 6 26 . 11 13 15 40 Haulers Intercepted 15 | . . 4 . . . 4 . . 1 . . 1 3 . . 2 . . Recyclers Shooed 2 | . 1 1 . . . . . . . . . . . . . . . . Parts Field Recycled . | . . . . . . . . . . . . . . . . . . . Retrieved Matter . | . . . . . . . . . . . . . . . . . . . Parts Self-Destructed 9 | . . . . . . . . . . 9 . . . . . . . . Prevented . | . . . . . . . . . . . . . . . . . . . Kills | -11 -10 -9 -9 -9 -8 -8 -7 -7 -7 -7 -7 -6 -5 -5 -5 -4 -4 -3 ------- Run | Scr Mat Mat Min Exi Min Mat Fac Was Fac Low Low Fac Fac Was Fac Fac Ext Res Combat Hostiles Destroyed 86 | . 11 22 20 . 8 16 . . . . . 1 2 . . 1 . 5 Melee 9 | . . . . . . . . . . . . 1 2 . . 1 . 5 Guns 58 | . 10 18 12 . 4 14 . . . . . . . . . . . . Cannons 2 | . . . . . . 2 . . . . . . . . . . . . AOE 15 | . 1 3 7 . 4 . . . . . . . . . . . . . Classes Destroyed 15 | . 5 2 4 . 1 . . . . . . 1 . . . . 1 1 Worker 5 | . 1 2 . . . 1 . . . . . . . . . . . 1 Builder 7 | . . . 1 . . . . . . . . . 1 . 1 . 3 1 Tunneler 1 | . . . 1 . . . . . . . . . . . . . . . Hauler 15 | . . 4 . . . 4 . . 1 . . 1 3 . . 2 . . Recycler 2 | . . . . . . . . . . . . . . . . . 2 . Operator 5 | . 1 1 . . . . . . 2 . . 1 . . . . . . Watcher 14 | . 1 2 . . . . 1 . . . . 1 2 . 2 2 . 3 Swarmer 24 | . 6 7 3 . 4 3 . . . . . . . . . 1 . . Cutter 3 | . . . . . . . . . . . . 1 2 . . . . . Grunt 39 | . 5 7 14 . 3 10 . . . . . . . . . . . . Brawler 1 | . . . 1 . . . . . . . . . . . . . . . Sentry 10 | . . 8 . . . 2 . . . . . . . . . . . . Hunter 2 | . . . . . 1 1 . . . . . . . . . . . . Programmer 5 | . . . . . . . . . . . . . . . . . . 5 Assembled 2 | . . . 2 . . . . . . . . . . . . . . . Best Kill Streak 8 | . 7 5 8 . 7 3 1 . 2 . . 1 2 . 1 2 3 3 Combat Bots Only 8 | . 6 3 8 . 7 3 . . . . . 1 2 . . 1 . 3 Max Kills in Single Turn 3 | . 2 2 3 . 3 1 1 . 1 . . 1 1 . 1 1 1 1 Gunslinging 1 | . 1 . . . . . . . . . . . . . . . . . Exploded 3 | . 1 2 2 . 3 . . . . . . . . . . . . . Melee 1 | . . . . . . . . . . . . 1 1 . . 1 . 1 Uniques/NPCs Destroyed . | . . . . . . . . . . . . . . . . . . . Combat | -11 -10 -9 -9 -9 -8 -8 -7 -7 -7 -7 -7 -6 -5 -5 -5 -4 -4 -3 -------- Run | Scr Mat Mat Min Exi Min Mat Fac Was Fac Low Low Fac Fac Was Fac Fac Ext Res Damage Taken 7945 | . 488 774 676 . 411 1037 21 . 10 . . 119 119 . 138 1322 477 2353 Core 2871 | . 177 76 21 . 91 93 . . . . . 21 . . 69 804 217 1302 Absorbed by Shields 17 | . . . . . . . . . . . . . . . . . 17 . Regen/Repaired (Parts) 358 | . . . . . . . . . . . . 217 44 . . . . 97 Core Remaining (%) 70 | 100 29 . . . 53 83 . . . . 100 97 . . 93 . 11 . Volleys Fired 247 | . 39 79 33 . 14 63 . . . . . 2 . . . . 16 1 Largest 2 | . 2 2 2 . 2 2 . . . . . 1 . . . . 1 1 Hottest 129 | . 60 90 90 . 90 129 . . . . . 7 . . . . 61 80 Shots Fired 460 | . 78 155 66 . 16 126 . . . . . 2 . . . . 16 1 Gun 415 | . 78 154 62 . 13 108 . . . . . . . . . . . . Cannon 33 | . . . . . . 18 . . . . . . . . . . 15 . Launcher 9 | . . 1 4 . 3 . . . . . . . . . . . . 1 Special 3 | . . . . . . . . . . . . 2 . . . . 1 . Kinetic 84 | . 39 . . . . 30 . . . . . . . . . . 15 . Thermal 91 | . 2 . . . . 89 . . . . . . . . . . . . Explosive 5 | . . 1 4 . . . . . . . . . . . . . . . Electromagnetic 277 | . 37 154 62 . 16 7 . . . . . . . . . . . 1 Robot Hit Streak 18 | . 9 9 11 . 4 18 . . . . . 1 . . . . 3 6 Robot Miss Streak 8 | . 8 5 5 . 3 3 . . . . . 1 . . . . . 1 Penetration Max . | . . . . . . . . . . . . . . . . . . . Secondary Targets 4 | . 1 1 1 . . 1 . . . . . . . . . . . . Max Gunslinging Chain 1 | . 1 1 1 . . 1 . . . . . . . . . . . . Shots Hit Robots 367 | . 37 86 46 . 12 93 2 . 3 . . 7 14 . 4 11 8 44 Core Hits 189 | . 23 39 37 . 15 37 1 . 2 . . 2 7 . 2 5 3 16 Critical Kills 1 | . 1 . . . . . . . . . . . . . . . . . Critical Parts Destroyed 1 | . 1 . . . . . . . . . . . . . . . . . Critical Strikes 23 | . 3 6 . . . 3 . . . . . . 1 . 1 1 1 7 Burn 3 | . . . . . . 3 . . . . . . . . . . . . Destroy 2 | . 2 . . . . . . . . . . . . . . . . . Blast 1 | . . . . . . . . . . . . . . . . . 1 . Corrupt 7 | . 1 6 . . . . . . . . . . . . . . . . Sever 10 | . . . . . . . . . . . . . 1 . 1 1 . 7 Melee Attacks 456 | . . . . . . 12 17 . 8 . . 94 100 2 41 63 15 104 Impact . | . . . . . . . . . . . . . . . . . . . Slashing 456 | . . . . . . 12 17 . 8 . . 94 100 2 41 63 15 104 Piercing . | . . . . . . . . . . . . . . . . . . . Sneak Attacks 20 | . . . . . . . . . 3 . . 1 4 . 2 2 6 2 Combat Hostiles . | . . . . . . . . . . . . . . . . . . . Follow-up Attacks 2 | . . . . . . . . . . . . . . . . . . 2 Damage Inflicted 10445 | . 538 1650 1106 . 362 1730 106 . 288 . . 385 878 . 312 733 510 1847 Guns 4032 | . 442 1309 755 . 147 1379 . . . . . . . . . . . . Cannons 240 | . . . . . . 202 . . . . . . . . . . 38 . Explosions 1012 | . 84 341 351 . 215 . . . . . . . . . . . . 21 Melee 5149 | . . . . . . 149 106 . 288 . . 385 878 . 312 733 472 1826 Ramming 12 | . 12 . . . . . . . . . . . . . . . . . Kinetic 493 | . 184 . . . . 271 . . . . . . . . . . 38 . Thermal 1965 | . 106 243 286 . 104 1226 . . . . . . . . . . . . Explosive 163 | . . 98 65 . . . . . . . . . . . . . . . Electromagnetic 2663 | . 236 1309 755 . 258 84 . . . . . . . . . . . 21 Impact . | . . . . . . . . . . . . . . . . . . . Slashing 5149 | . . . . . . 149 106 . 288 . . 385 878 . 312 733 472 1826 Piercing . | . . . . . . . . . . . . . . . . . . . Highest Corruption 27 | . . . . . . . . . 1 1 1 . . 18 18 . . 27 Average Corruption 8 | . . . . . . . . . 1 1 1 . . 12 18 . . 8 Corruption Purged . | . . . . . . . . . . . . . . . . . . . Corruption Blocked . | . . . . . . . . . . . . . . . . . . . Effects 68 | . . . . . . . . . . 4 . . . 7 19 . . 38 Message Errors 18 | . . . . . . . . . . . . . . 4 5 . . 9 Matter Fused 15 | . . . . . . . . . . . . . . 1 5 . . 9 Heat Flow Errors 6 | . . . . . . . . . . . . . . 1 3 . . 2 Energy Discharges 11 | . . . . . . . . . . 2 . . . . 3 . . 6 Data Loss (minor) 8 | . . . . . . . . . . 1 . . . . 1 . . 6 Data Loss (major) 4 | . . . . . . . . . . 1 . . . 1 . . . 2 Alerts 1 | . . . . . . . . . . . . . . . . . . 1 Misdirections 5 | . . . . . . . . . . . . . . . 2 . . 3 Overload Shots . | . . . . . . . . . . . . . . . . . . . Overflow Damage 603 | . . 30 15 . . . 25 . 62 . . 129 71 . 92 11 136 32 Projectiles 8 | . . . . . . . . . . . . . . . . . 8 . Explosions 45 | . . 30 15 . . . . . . . . . . . . . . . Melee 550 | . . . . . . . 25 . 62 . . 129 71 . 92 11 128 32 Knockbacks . | . . . . . . . . . . . . . . . . . . . Impact . | . . . . . . . . . . . . . . . . . . . Kinetic . | . . . . . . . . . . . . . . . . . . . Secondary . | . . . . . . . . . . . . . . . . . . . Self-Inflicted Damage 392 | . 6 60 288 . 38 . . . . . . . . . . . . . Shots 13 | . . 2 9 . 2 . . . . . . . . . . . . . Rammed 1 | . 1 . . . . . . . . . . . . . . . . . Targets Rammed 1 | . 1 . . . . . . . . . . . . . . . . . Kicked . | . . . . . . . . . . . . . . . . . . . Crushed . | . . . . . . . . . . . . . . . . . . . Highest Temperature 390 | . 158 351 325 . 60 390 . . . . . 14 . 271 352 2 5 263 Average Temperature 101 | . 48 84 110 . 26 137 . . . . . 10 . 137 145 2 3 101 Received Heat Transfer 1185 | . 150 228 162 . 108 324 . . . . . 36 9 . 27 60 60 21 Effects 8 | . . . 2 . . 5 . . . . . . . . 1 . . . Shutdowns 2 | . . . . . . 2 . . . . . . . . . . . . Energy Bleed 2 | . . . 1 . . . . . . . . . . . 1 . . . Interference 3 | . . . . . . 3 . . . . . . . . . . . . Short Circuit 1 | . . . 1 . . . . . . . . . . . . . . . Siege Activations . | . . . . . . . . . . . . . . . . . . . Robots Corrupted 3 | . . 2 1 . . . . . . . . . . . . . . . Combat Hostiles 2 | . . 1 1 . . . . . . . . . . . . . . . Parts Fried 14 | . 1 12 1 . . . . . . . . . . . . . . . Impact Corruptions . | . . . . . . . . . . . . . . . . . . . Robots Melted . | . . . . . . . . . . . . . . . . . . . Combat Hostiles . | . . . . . . . . . . . . . . . . . . . Parts Melted 11 | . 1 . 1 . . 9 . . . . . . . . . . . . Heat Transferred 3738 | . 200 200 450 . 150 2738 . . . . . . . . . . . . Parts Sabotaged . | . . . . . . . . . . . . . . . . . . . Parts Stolen . | . . . . . . . . . . . . . . . . . . . Parts Stripped . | . . . . . . . . . . . . . . . . . . . Power Chain Reactions 12 | . 1 3 6 . 2 . . . . . . . . . . . . . Missiles Intercepted . | . . . . . . . . . . . . . . . . . . . Alert | -11 -10 -9 -9 -9 -8 -8 -7 -7 -7 -7 -7 -6 -5 -5 -5 -4 -4 -3 ------- Run | Scr Mat Mat Min Exi Min Mat Fac Was Fac Low Low Fac Fac Was Fac Fac Ext Res Peak Influence 666 | . 239 666 578 . 211 156 119 41 609 . . 199 174 64 197 223 275 264 Initial 259 | . . 38 259 . . 3 49 41 28 . . 172 19 15 44 . 88 127 Average 158 | . 111 408 370 . 102 49 63 41 337 . . 69 69 33 97 62 136 158 Maximum Alert Level 2 | . 1 2 2 . 1 . . . 2 . . . . . . 1 1 1 Low Security (%) 70 | 100 78 15 . . 59 100 100 100 13 . . 100 100 100 100 98 63 76 Level 1 16 | . 21 25 58 . 40 . . . 39 . . . . . . 1 36 23 Level 2 12 | . . 58 41 . . . . . 46 . . . . . . . . . Level 3 . | . . . . . . . . . . . . . . . . . . . Level 4 . | . . . . . . . . . . . . . . . . . . . Level 5 . | . . . . . . . . . . . . . . . . . . . High Security . | . . . . . . . . . . . . . . . . . . . Max Security . | . . . . . . . . . . . . . . . . . . . Squads Dispatched 44 | . 3 1 1 . . 1 1 . 5 . . 8 2 . 2 8 2 10 Investigation 13 | . 2 . . . . . 1 . 1 . . 1 1 . . 2 1 4 Extermination 7 | . . . . . . . . . 1 . . 1 . . . 2 . 3 Reinforcement 24 | . 1 1 1 . . 1 . . 3 . . 6 1 . 2 4 1 3 Assault . | . . . . . . . . . . . . . . . . . . . Garrison . | . . . . . . . . . . . . . . . . . . . Intercept . | . . . . . . . . . . . . . . . . . . . Searches Triggered . | . . . . . . . . . . . . . . . . . . . Construction Impeded 1 | . . . 1 . . . . . . . . . . . . . . . Haulers Reinforced 1 | . . . . . . . . . . . . . . . . 1 . . Active Scanning Responses . | . . . . . . . . . . . . . . . . . . . Cargo Convoy Interrupts . | . . . . . . . . . . . . . . . . . . . Stealth | -11 -10 -9 -9 -9 -8 -8 -7 -7 -7 -7 -7 -6 -5 -5 -5 -4 -4 -3 --------- Run | Scr Mat Mat Min Exi Min Mat Fac Was Fac Low Low Fac Fac Was Fac Fac Ext Res Distress Signals 9 | . . 3 1 . . . 1 . . . . 1 . . 2 . . 1 Communications Jammed 5 | . . . . . . . . . . . . . . . . . . 5 Distress Signals 4 | . . . . . . . . . . . . . . . . . . 4 Times Spotted 259 | . 21 42 20 . 9 22 3 . 3 . . 19 11 6 14 37 23 29 Peak Tracking Total 11 | . 6 6 4 . 7 3 3 . 2 . . 5 3 6 5 11 9 9 Tactical Retreats 39 | . 1 4 1 . 1 . . . . . . 6 4 . 3 8 6 5 Traps | -11 -10 -9 -9 -9 -8 -8 -7 -7 -7 -7 -7 -6 -5 -5 -5 -4 -4 -3 ------- Run | Scr Mat Mat Min Exi Min Mat Fac Was Fac Low Low Fac Fac Was Fac Fac Ext Res Traps Triggered 11 | . 1 1 . . . 2 1 . . . . . 1 . 1 1 3 . Indirectly . | . . . . . . . . . . . . . . . . . . . Trap Hack Attempts . | . . . . . . . . . . . . . . . . . . . Triggered . | . . . . . . . . . . . . . . . . . . . Disarmed . | . . . . . . . . . . . . . . . . . . . Reprogrammed . | . . . . . . . . . . . . . . . . . . . Reused . | . . . . . . . . . . . . . . . . . . . Traps Extracted . | . . . . . . . . . . . . . . . . . . . Installed . | . . . . . . . . . . . . . . . . . . . Triggered . | . . . . . . . . . . . . . . . . . . . Machines | -11 -10 -9 -9 -9 -8 -8 -7 -7 -7 -7 -7 -6 -5 -5 -5 -4 -4 -3 ---------- Run | Scr Mat Mat Min Exi Min Mat Fac Was Fac Low Low Fac Fac Was Fac Fac Ext Res Machines Disabled 6 | . . 5 1 . . . . . . . . . . . . . . . Max in Single Turn 1 | . . 1 1 . . . . . . . . . . . . . . . Garrison Access 6 | . . . . . . . . . . . . 2 3 . 1 . . . Machines Sabotaged . | . . . . . . . . . . . . . . . . . . . Garrisons Compromised . | . . . . . . . . . . . . . . . . . . . Overloaded Fab Kills . | . . . . . . . . . . . . . . . . . . . Hacking | -11 -10 -9 -9 -9 -8 -8 -7 -7 -7 -7 -7 -6 -5 -5 -5 -4 -4 -3 --------- Run | Scr Mat Mat Min Exi Min Mat Fac Was Fac Low Low Fac Fac Was Fac Fac Ext Res Machines Accessed 105 | . 9 9 . 3 . 6 3 . 6 . . 16 19 . 3 9 13 9 Terminals 66 | . 7 6 . . . 5 1 . 3 . . 9 10 . 2 5 12 6 Fabricators 11 | . . . . . . . 2 . 1 . . 3 1 . . 2 . 2 Repair Stations 5 | . . . . . . . . . 1 . . 2 1 . . . . 1 Recycling Units 11 | . 2 2 . . . . . . 1 . . . 4 . . 1 1 . Scanalyzers 3 | . . 1 . . . 1 . . . . . . . . . 1 . . Garrison Access 6 | . . . . . . . . . . . . 2 3 . 1 . . . Total Hacks 309 | . 32 28 . 3 . 20 5 . 12 . . 44 48 . 11 51 29 26 Successful 197 | . 19 16 . 3 . 10 3 . 2 . . 31 34 . 5 42 21 11 Failed 111 | . 13 12 . . . 10 2 . 10 . . 12 14 . 6 9 8 15 Catastrophic 14 | . . 3 . . . 1 1 . 2 . . 1 3 . . . 1 2 Database Lockouts 1 | . . . . . . . . . . . . 1 . . . . . . Manual 220 | . 23 22 . 4 . 17 3 . 5 . . 45 34 . 6 25 19 17 Terminals 231 | . 27 24 . . . 17 1 . 7 . . 31 36 . 9 34 27 18 Fabricators 22 | . . . . . . . 4 . 1 . . 4 3 . . 4 . 6 Repair Stations 14 | . . . . . . . . . 3 . . 7 2 . . . . 2 Recycling Units 15 | . 5 2 . . . . . . 1 . . . 4 . . 1 2 . Scanalyzers 17 | . . 2 . . . 3 . . . . . . . . . 12 . . Garrison Access 7 | . . . . . . . . . . . . 2 3 . 2 . . . Terminal Hacks 75 | . 6 5 . 3 . 1 . . . . . 11 14 . 3 19 11 2 Record 3 | . 1 . . 2 . . . . . . . . . . . . . . Part Schematic 7 | . . 1 . . . . . . . . . 1 2 . . 3 . . Robot Schematic 3 | . . . . . . . . . . . . . . . 2 1 . . Prototype ID Bank 4 | . 1 . . . . . . . . . . 2 . . . 1 . . Open Door 6 | . . . . . . . . . . . . . . . . . 5 1 Level Access Points 4 | . . . . . . . . . . . . 1 1 . . 1 1 . Branch Access Points 2 | . . . . . . . . . . . . . 1 . . . 1 . Terminal Index 7 | . . 1 . . . 1 . . . . . 1 1 . . 1 1 1 Fabricator Index 4 | . . . . . . . . . . . . 1 2 . . 1 . . Repair Station Index 2 | . . . . . . . . . . . . 1 . . . 1 . . Recycling Unit Index 1 | . . . . . . . . . . . . . . . . 1 . . Garrison Index 1 | . . . . . . . . . . . . . . . . 1 . . Alert Level 2 | . . . . . . . . . . . . . . . . 1 1 . Unreport Threat 10 | . 1 . . . . . . . . . . 2 3 . 1 2 1 . Locate Traps 1 | . . . . . . . . . . . . . . . . . 1 . Dispatch Records 1 | . . . . . . . . . . . . . . . . 1 . . Transport Status 3 | . 1 1 . . . . . . . . . . 1 . . . . . Investigation Status 1 | . . . . . . . . . . . . . . . . 1 . . Recall Investigation 3 | . . . . . . . . . . . . 1 1 . . 1 . . Recall Extermination 2 | . . . . . . . . . . . . . . . . 2 . . Hauler Manifests 5 | . 2 1 . . . . . . . . . 1 1 . . . . . Registered Components 1 | . . 1 . . . . . . . . . . . . . . . . Registered Prototypes 1 | . . . . . . . . . . . . . 1 . . . . . EX-Prototype ID Bank 1 | . . . . 1 . . . . . . . . . . . . . . Fabricator Hacks 13 | . . . . . . . 2 . . . . 1 2 . . 4 . 4 Network Status 1 | . . . . . . . . . . . . 1 . . . . . . Load Schematic 6 | . . . . . . . 1 . . . . . 1 . . 2 . 2 Build 6 | . . . . . . . 1 . . . . . 1 . . 2 . 2 Repair Station Hacks 11 | . . . . . . . . . 1 . . 6 2 . . . . 2 Scan Component 6 | . . . . . . . . . 1 . . 3 1 . . . . 1 Repair 5 | . . . . . . . . . . . . 3 1 . . . . 1 Recycling Unit Hacks 13 | . 3 2 . . . . . . 1 . . . 4 . . 1 2 . Report Inventory 11 | . 2 2 . . . . . . 1 . . . 4 . . 1 1 . Retrieve Components 2 | . 1 . . . . . . . . . . . . . . . 1 . Scanalyzer 17 | . . 2 . . . 3 . . . . . . . . . 12 . . Insert Component 7 | . . 1 . . . 2 . . . . . . . . . 4 . . Analyze 10 | . . 1 . . . 1 . . . . . . . . . 8 . . Garrison Access Hacks 6 | . . . . . . . . . . . . 2 3 . 1 . . . Seal Access 6 | . . . . . . . . . . . . 2 3 . 1 . . . Unauthorized Hacks 62 | . 10 7 . . . 6 1 . . . . 11 9 . 1 6 8 3 Terminals 60 | . 9 7 . . . 6 1 . . . . 10 9 . 1 6 8 3 Assimilate 14 | . 1 . . . . 1 . . . . . 4 3 . 1 . 2 2 Botnet 39 | . 6 5 . . . 4 1 . . . . 5 6 . . 5 6 1 Operators 7 | . 2 2 . . . 1 . . . . . 1 . . . 1 . . Fabricators 1 | . . . . . . . . . . . . 1 . . . . . . Fabnet 1 | . . . . . . . . . . . . 1 . . . . . . Repair Stations . | . . . . . . . . . . . . . . . . . . . Recycling Units 1 | . 1 . . . . . . . . . . . . . . . . . Mask 1 | . 1 . . . . . . . . . . . . . . . . . Scanalyzers . | . . . . . . . . . . . . . . . . . . . Garrison Access . | . . . . . . . . . . . . . . . . . . . Data Cores Recovered 2 | . . . . . . . . . 1 . . 1 . . . . . . Used 1 | . . . . . . . . . 1 . . . . . . . . . Hacking Detections 71 | . 9 6 . . . 5 3 . 5 . . 10 10 . 2 7 5 9 Full Trace Events 13 | . 2 . . . . . 1 . 1 . . 1 1 . . 2 1 4 Feedback Events 1 | . . . . . . . . . 1 . . . . . . . . . Corruption 1 | . . . . . . . . . 1 . . . . . . . . . Feedback Blocked . | . . . . . . . . . . . . . . . . . . . Robot Schematics Acquired 3 | . . . . . . . . . . . . . . . 2 1 . . Robots Built . | . . . . . . . . . . . . . . . . . . . Authchips . | . . . . . . . . . . . . . . . . . . . Time . | . . . . . . . . . . . . . . . . . . . Total Robot Build Rating . | . . . . . . . . . . . . . . . . . . . Part Schematics Acquired 13 | . . 2 . . . 1 . . . . . 1 2 . . 7 . . Parts Built 6 | . . . . . . . 1 . . . . . 1 . . 2 . 2 Authchips . | . . . . . . . . . . . . . . . . . . . Time 307 | . . . . . . . 36 . . . . . 35 . . 94 . 142 Total Part Build Rating 29 | . . . . . . . 3 . . . . . 6 . . 10 . 10 Parts Repaired 5 | . . . . . . . . . . . . 3 1 . . . . 1 Time 316 | . . . . . . . . . . . . 220 28 . . . . 68 Parts Recycled . | . . . . . . . . . . . . . . . . . . . Recycled Matter . | . . . . . . . . . . . . . . . . . . . Retrieved Matter . | . . . . . . . . . . . . . . . . . . . Retrieved Components 3 | . . . . . . . . . . . . . . . . . 3 . Parts Scanalyzed 6 | . . 1 . . . 1 . . . . . . . . . 4 . . Part Schematics Acquired 6 | . . 1 . . . 1 . . . . . . . . . 4 . . Parts Damaged 1 | . . . . . . 1 . . . . . . . . . . . . Bothacking | -11 -10 -9 -9 -9 -8 -8 -7 -7 -7 -7 -7 -6 -5 -5 -5 -4 -4 -3 ------------ Run | Scr Mat Mat Min Exi Min Mat Fac Was Fac Low Low Fac Fac Was Fac Fac Ext Res Used RIF Installer . | . . . . . . . . . . . . . . . . . . . Robots Hacked 4 | . . . . . . . . . . . . 1 . . 1 1 1 . Non-combat 2 | . . . . . . . . . . . . 1 . . . . 1 . Combat 2 | . . . . . . . . . . . . . . . 1 1 . . Robot Hacks Applied 2 | . . . . . . . . . . . . 1 . . . . 1 . find_chute 1 | . . . . . . . . . . . . 1 . . . . . . find_recycling 1 | . . . . . . . . . . . . . . . . . 1 . Relay Couplers Released . | . . . . . . . . . . . . . . . . . . . Fabnet Peak Effective % 3 | . . . . . . . . . . . . . 3 3 3 1 1 . Autooverrided 2 | . . . . . . . . . . . . . . . 1 1 . . Robots Rewired . | . . . . . . . . . . . . . . . . . . . Allies Hacked 1 | . . . . . . . . . . . . . . . . . . 1 Hacks Repelled . | . . . . . . . . . . . . . . . . . . . Allies | -11 -10 -9 -9 -9 -8 -8 -7 -7 -7 -7 -7 -6 -5 -5 -5 -4 -4 -3 -------- Run | Scr Mat Mat Min Exi Min Mat Fac Was Fac Low Low Fac Fac Was Fac Fac Ext Res Total Allies 41 | . 1 . 1 . . 1 . 20 . . . 2 2 . 2 1 10 1 Largest Group 20 | . 1 . 1 1 . 1 . 20 20 12 10 10 1 . 1 . 5 1 Highest-Rated Group 552 | . 10 . 31 31 . 10 . 552 552 358 296 296 26 . 26 . 234 45 Highest-Rated Ally 51 | . 10 . 31 31 . 10 . 35 35 31 31 31 26 . 26 . 51 45 Total Orders 15 | . . . . . . . . . 8 . 2 1 . 3 . . 1 . STAY 1 | . . . . . . . . . . . . 1 . . . . . . EXPLORE 9 | . . . . . . . . . 5 . 1 . . 2 . . 1 . RETURN 5 | . . . . . . . . . 3 . 1 . . 1 . . . . Ally Attacks 160 | . . . . . . . . . 60 35 . 19 . . 1 1 44 . Total Damage 3593 | . . . . . . . . . 1796 525 . 253 . . . 39 980 . Kills 33 | . . . . . . . . . 13 8 . 2 . . . . 10 . Allies Corrupted 2 | . . . . . . . . . . 1 . . . . . . . 1 Allies Melted . | . . . . . . . . . . . . . . . . . . . Intel | -11 -10 -9 -9 -9 -8 -8 -7 -7 -7 -7 -7 -6 -5 -5 -5 -4 -4 -3 ------- Run | Scr Mat Mat Min Exi Min Mat Fac Was Fac Low Low Fac Fac Was Fac Fac Ext Res Robot Analysis Total . | . . . . . . . . . . . . . . . . . . . Derelict Logs Recovered 5 | . . . . . . . . . . 3 2 . . . . . . . Drone Launches 15 | . . . . . . . . . 8 . 3 . . 2 . . 2 . Drone Recoveries 12 | . . . . . . . . . 8 . 2 . . 2 . . . . Exploration | -11 -10 -9 -9 -9 -8 -8 -7 -7 -7 -7 -7 -6 -5 -5 -5 -4 -4 -3 ------------- Run | Scr Mat Mat Min Exi Min Mat Fac Was Fac Low Low Fac Fac Was Fac Fac Ext Res Turns Passed 15022 | 5 752 1598 1103 821 576 2455 203 109 538 541 201 1707 865 186 417 794 664 1487 Spaces Moved 18348 | 5 490 875 612 606 353 1052 375 259 1011 980 378 3183 1764 319 970 1866 945 2305 Core 347 | . . . . . . . . . . . . . 1 . . 67 267 12 Treads 874 | . 26 40 95 . 282 431 . . . . . . . . . . . . Legs 201 | 5 196 . . . . . . . . . . . . . . . . . Wheels 2933 | . 268 835 517 606 71 621 15 . . . . . . . . . . . Hover 97 | . . . . . . . . . . . . . . . . . . 97 Flight 13896 | . . . . . . . 360 259 1011 980 378 3183 1763 319 970 1799 678 2196 Fastest Speed 24 | 120 100 130 135 135 135 125 27 27 26 26 26 26 24 24 24 24 26 27 Average Speed 54 | 120 122 137 148 135 142 163 32 27 26 26 26 28 26 24 24 26 36 37 Slowest Speed 400 | 120 160 240 225 135 145 225 175 27 27 26 26 99 400 24 24 175 115 100 Overloaded Moves . | . . . . . . . . . . . . . . . . . . . Propulsion Burnouts . | . . . . . . . . . . . . . . . . . . . Robots Hopped 5 | . . . . . . . . . . . . . . . . . 3 2 Cave-ins Triggered . | . . . . . . . . . . . . . . . . . . . Exploration Rate (%) 58 | 2 94 77 82 93 74 55 7 97 19 83 63 65 40 93 33 27 79 27 Regions Visited 18 Branch Regions 6 Pre-discovered Areas 2 | . . . . . . . . . . 1 1 . . . . . . . Known Exits Taken 7 | . . . . . . . . . 1 1 1 1 . . 1 1 1 . Unknown Exits Taken 7 | 1 1 1 1 1 1 1 . . . . . . . . . . . . Scrap Searched 10 | . . . 2 . 1 . . . . 4 3 . . . . . . . Spaces Dug 369 | . . 5 9 . . 8 15 . 5 . . 85 84 2 36 49 23 48 Terrain Destroyed 457 | . 4 21 52 . 23 8 15 . 5 . . 85 84 2 36 49 25 48 Melee 341 | . . . . . . 8 15 . 5 . . 85 84 2 36 49 9 48 Projectile 16 | . . . . . . . . . . . . . . . . . 16 . AOE 100 | . 4 21 52 . 23 . . . . . . . . . . . . . Terrain Rammed . | . . . . . . . . . . . . . . . . . . . Walls Destroyed . | . . . . . . . . . . . . . . . . . . . Machines Disabled . | . . . . . . . . . . . . . . . . . . . Actions | -11 -10 -9 -9 -9 -8 -8 -7 -7 -7 -7 -7 -6 -5 -5 -5 -4 -4 -3 --------- Run | Scr Mat Mat Min Exi Min Mat Fac Was Fac Low Low Fac Fac Was Fac Fac Ext Res Total 22431 | 4 573 1122 737 609 408 1658 445 300 1272 1265 478 3886 2060 424 1112 2100 1219 2759 Wait 2934 | . 17 105 82 . 36 469 17 19 239 283 99 568 169 102 91 157 182 299 Move 18322 | 4 489 874 611 605 352 1051 375 258 1010 979 377 3182 1764 318 969 1865 938 2301 Hop 5 | . . . . . . . . . . . . . . . . . 3 2 Pick Up 87 | . 8 19 4 1 . 17 2 5 6 1 . 10 3 . 2 2 3 4 Fast Attach 85 | . 6 7 . 1 1 9 2 5 2 . . 5 3 . 2 . 15 27 Attach 47 | . 2 3 2 . 3 3 6 . 1 . . 5 6 . . 6 4 6 Detach 37 | . 4 1 . . 1 5 3 1 1 . . 6 5 . 1 1 3 5 Swap 64 | . 3 9 3 . 1 14 4 1 3 1 2 6 7 2 3 4 . 1 Drop 114 | . 4 25 2 2 . 15 19 11 2 1 . 8 3 . 3 2 4 13 Fire 247 | . 39 79 33 . 14 63 . . . . . 2 . . . . 16 1 Melee 452 | . . . . . . 12 17 . 8 . . 94 100 2 41 63 15 100 Ram 1 | . 1 . . . . . . . . . . . . . . . . . Kick . | . . . . . . . . . . . . . . . . . . . Crush . | . . . . . . . . . . . . . . . . . . . Escape Stasis 36 | . . . . . . . . . . . . . . . . . 36 . Rewire . | . . . . . . . . . . . . . . . . . . . Trap . | . . . . . . . . . . . . . . . . . . . Miscellaneous . | . . . . . . . . . . . . . . . . . . . Route ------- -11/Scrapyard -10/Materials (discovered 5 exits: *Mat x3 / [*Min x2]) -9/Materials (discovered 4 exits: *Mat x2 / [*Min x2]) -9/Mines (discovered 3 exits: *Mat x2 / *Exi) -9/Exiles (discovered 2 exits: [*Min x2]) -8/Mines -8/Materials (discovered 2 exits: *Fac x2) -7/Factory -7/Waste -7/Factory (discovered 3 exits: *Fac x2 / *Low) -7/Lower Caves -7/Lower Caves -6/Factory (discovered 5 exits: *Fac x4 / *Low) -5/Factory (discovered 6 exits: *Fac x4 / *Upp x2) -5/Waste -5/Factory (discovered 2 exits: *Fac x2) -4/Factory (discovered 6 exits: *Res x4 / *Upp / *Ext) -4/Extension (discovered 3 exits: *Res x2 / *Cet) -3/Research (discovered 1 exit: *Qua) History --------- Turn | Location | Event 1 | -11/Scrapyard | Discovered new exit (range 2) 6 | -11/Scrapyard | Entered Materials 111 | -10/Materials | Discovered new exit (range 13) 150 | -10/Materials | Discovered new exit (range 15) 313 | -10/Materials | Build established: Mutant 330 | -10/Materials | Discovered new exit (range 10) 443 | -10/Materials | Discovered new exit (range 14) 448 | -10/Materials | Core integrity fell below 50% 692 | -10/Materials | Discovered new exit (range 4) 758 | -10/Materials | Entered another Materials area 758 | -9/Materials | Evolved 2 slots: Propulsion x1, Utility x1 1393 | -9/Materials | Discovered new exit (range 9) 1673 | -9/Materials | Discovered new exit (range 9) 1809 | -9/Materials | Discovered new exit (range 16) 2105 | -9/Materials | Discovered new exit (range 14) 2356 | -9/Materials | Entered Mines 2548 | -9/Mines | Excavation squad dispatched 2548 | -9/Mines | A large section of the Mines collapsed 2798 | -9/Mines | Excavation squad dispatched 3048 | -9/Mines | Excavation squad dispatched 3099 | -9/Mines | Discovered new exit (range 4) 3111 | -9/Mines | Destroyed 8 combat bots 3148 | -9/Mines | Discovered new exit (range 7) 3319 | -9/Mines | Found a damaged Exp. Sensor Array with a note attached 3322 | -9/Mines | Found Prototype Device 3382 | -9/Mines | Deemed a non-threat by the Exiles lab entrance 3382 | -9/Mines | Discovered new exit (range 5) 3412 | -9/Mines | Received a Mining Laser from a helpful Derelict 3459 | -9/Mines | Entered Exiles 3459 | -9/Exiles | Accompanied by 1 ally 3495 | -9/Exiles | Met 8R-AWN 3521 | -9/Exiles | Discovered new exit (range 14) 3578 | -9/Exiles | Met EX-HEX 3633 | -9/Exiles | Met EX-DEC 3668 | -9/Exiles | Visited The Gauntlet 3896 | -9/Exiles | Met EX-BIN 3937 | -9/Exiles | Aligned with FarCom system 3938 | -9/Exiles | Given EX-Vault access code 4058 | -9/Exiles | Opened EX-Vault 4089 | -9/Exiles | Warned to stay clear of 0b10 Research branches 4134 | -9/Exiles | Found Longsword +1 4254 | -9/Exiles | Discovered new exit (range 14) 4280 | -9/Exiles | Left Exiles lab with Longsword +1 4280 | -9/Exiles | Entered Mines 4427 | -8/Mines | Lost 4 parts (1n1u2w) 4437 | -8/Mines | Destroyed 7 combat bots 4604 | -8/Mines | Discovered new exit (range 12) 4856 | -8/Mines | Entered Materials 4856 | -8/Materials | Evolved 2 slots: Propulsion x1, Utility x1 5910 | -8/Materials | Discovered new exit (range 19) 6798 | -8/Materials | Discovered new exit (range 14) 6840 | -8/Materials | Identified Exp. Sensor Array 7311 | -8/Materials | Entered Factory 7311 | -7/Factory | Evolved 2 slots: Utility x2 7506 | -7/Factory | Fabricated Hacking Suite? 7514 | -7/Factory | Sucked down chute 7514 | -7/Factory | Entered Waste 7515 | -7/Waste | Joined by Warlord forces that had cleared the area 7574 | -7/Waste | Discovered new exit (range 20) 7600 | -7/Waste | Identified exit to Factory 7623 | -7/Waste | Entered Factory 7623 | -7/Factory | Accompanied by 20 allies 7650 | -7/Factory | Discovered new exit (range 36) 7708 | -7/Factory | Identified exit to Factory 7711 | -7/Factory | Discovered exit to Factory (range 18) 7797 | -7/Factory | Discovered new exit (range 10) 7884 | -7/Factory | Build established: Hacker-Scout 7917 | -7/Factory | Identified exit to Lower Caves 8161 | -7/Factory | Entered Lower Caves 8161 | -7/Lower Caves | Accompanied by 12 allies 8179 | -7/Lower Caves | Learned 4 Factory zone layouts 8389 | -7/Lower Caves | Learned Factory trap positions 8526 | -7/Lower Caves | Encountered a Warlord checkpoint 8538 | -7/Lower Caves | Discovered new exit (range 18) 8542 | -7/Lower Caves | Identified exit to Lower Caves 8702 | -7/Lower Caves | Entered another Lower Caves area 8702 | -7/Lower Caves | Accompanied by 10 allies 8716 | -7/Lower Caves | Discovered exit to Factory (range 25) 8772 | -7/Lower Caves | Learned Factory terminal intel 8775 | -7/Lower Caves | Learned location of Extension (-4) 8903 | -7/Lower Caves | Entered Factory 8903 | -6/Factory | Accompanied by 10 allies 8903 | -6/Factory | Evolved 2 slots: Utility x2 8905 | -6/Factory | Loaded intel: 113 trap records 8906 | -6/Factory | Loaded intel: 26 terminal locations 9470 | -6/Factory | Discovered new exit (range 13) 9478 | -6/Factory | Central database locked down 9583 | -6/Factory | Repaired Imp. Remote Datajack 9833 | -6/Factory | Repaired Mni. Drone Bay 10279 | -6/Factory | Repaired Exp. Sensor Array 10432 | -6/Factory | Identified exit to Lower Caves 10437 | -6/Factory | Identified exit to Factory 10512 | -6/Factory | Spotted B-75 Beast 10610 | -6/Factory | Entered another Factory area 10610 | -5/Factory | Evolved 2 slots: Utility x2 10670 | -5/Factory | Discovered new exit (range 7) 10671 | -5/Factory | Identified exit to Upper Caves 10699 | -5/Factory | Spotted B-75 Beast 10728 | -5/Factory | Discovered new exit (range 22) 11058 | -5/Factory | Discovered new exit (range 11) 11229 | -5/Factory | Identified exit to Factory 11308 | -5/Factory | Fabricated Adv. Hacking Suite (x1) 11452 | -5/Factory | Repaired Mic. Fission Core 11475 | -5/Factory | Sucked down chute 11475 | -5/Factory | Entered Waste 11482 | -5/Waste | Spotted C-40 Crusher 11490 | -5/Waste | EMP discharged 11508 | -5/Waste | Spotted C-40 Crusher 11520 | -5/Waste | Spotted C-40 Crusher 11522 | -5/Waste | Spotted C-40 Crusher 11575 | -5/Waste | Spotted C-40 Crusher 11590 | -5/Waste | EMP discharged 11590 | -5/Waste | System corruption reached 10% 11607 | -5/Waste | Build established: Wizard-Scout 11613 | -5/Waste | Spotted C-40 Crusher 11645 | -5/Waste | Discovered new exit (range 10) 11649 | -5/Waste | Identified exit to Factory 11661 | -5/Waste | Entered Factory 11902 | -5/Factory | Local machine network offline 11959 | -5/Factory | Discovered exit to Factory (range 14) 12059 | -5/Factory | Discovered exit to Factory (range 5) 12078 | -5/Factory | Entered another Factory area 12078 | -4/Factory | Evolved 2 slots: Utility x2 12095 | -4/Factory | Spotted B-86 Titan 12129 | -4/Factory | Identified exit to Research 12208 | -4/Factory | Discovered new exit (range 10) 12211 | -4/Factory | Identified exit to Extension 12236 | -4/Factory | Discovered new exit (range 16) 12273 | -4/Factory | Identified exit to Upper Caves 12411 | -4/Factory | Fabricated Imp. Hacking Suite? 12763 | -4/Factory | Fabricated Imp. Hacking Suite? 12832 | -4/Factory | Spotted B-86 Titan 12860 | -4/Factory | Core integrity fell below 50% 12872 | -4/Factory | Entered Extension 12898 | -4/Extension | Lost 10 parts (1p5n4u) 12943 | -4/Extension | Spotted B-86 Titan 12947 | -4/Extension | Spotted B-86 Titan 13024 | -4/Extension | Rescued a captive Derelict 13029 | -4/Extension | Rescued a captive Derelict 13180 | -4/Extension | Build established: Hacker-Scout 13183 | -4/Extension | Core integrity fell below 20% 13245 | -4/Extension | Rescued a captive Derelict 13415 | -4/Extension | Rescued a captive Derelict 13442 | -4/Extension | Identified exit to Cetus 13469 | -4/Extension | Rescued a captive Derelict 13471 | -4/Extension | Rescued a captive Derelict 13493 | -4/Extension | Rescued a captive Derelict 13493 | -4/Extension | Rescued a captive Derelict 13536 | -4/Extension | Entered Research 13536 | -3/Research | Evolved 2 slots: Utility x2 13637 | -3/Research | Fabricated Imp. Hacking Suite (x1) 13770 | -3/Research | Build established: Scavenger-Scout 13853 | -3/Research | Fabricated Imp. Hacking Suite (x1) 13963 | -3/Research | Lost 4 parts (3n1u) 14295 | -3/Research | Repaired Impulse Thruster Array? 14399 | -3/Research | System corruption reached 10% 14457 | -3/Research | Lost 5 parts (1p3u1w) 14951 | -3/Research | Found Unknown Launcher 14951 | -3/Research | Identified Gamma Bomb Array 14976 | -3/Research | Discovered new exit (range 9) 14978 | -3/Research | Identified exit to Quarantine 14986 | -3/Research | Core integrity fell below 50% 15016 | -3/Research | Core integrity fell below 20% 15023 | -3/Research | Destroyed by H-77 Assassin with High-powered Shotgun Last Messages --------------- 14974_ Terminal disabled. 14976_ Connecting with Door Terminal... >>Open(Door) Sealed Blast Doors opened. 14976_ EXIT=FOUND 14978_ EXIT=IDENTIFIED: QUARANTINE 14982_ System corrupted: Energy discharge (-9). 14987_ Adv. Transmission Jammer destroyed. 15004_ Gamma Bomb Array destroyed. 15004_ Mic. Nuclear Core destroyed. 15006_ Impulse Thruster Array destroyed. 15009_ Adv. Terrain Scanner destroyed. 15010_ Penetrated by Slug. 15015_ | HFNSA<%PK/7O7NIVRNPWP&0N5WB9,%DJV8 15019_ Knocked back. 15019_ Katana destroyed. 15022_ Knocked back. 15022_ Adv. Visual Processing Unit destroyed. 15023_ Slug penetrates Wall. 15023_ Slug penetrates Terminal. Map ----- +----------------------------------------------------+ | ??????# #???????????????????????????????????? | | ??????# #???????????????????????????????????? | | ??????# #???????????????????????????????????? | | ??????# #???????????????????????????????????? | | ??????# ########????????????????????????????? | | ??????####/### ! #????????????????????????????? | | ######## # #????????????????????????????? | | # ! #????????????????????????????? | | T / = #?########???????????????????? | | # #?# #???????????????????? | | ######## # #?# ! #???????????????????? | | ???????### ##########?# ########????????????? | | ?????????# #??????????# ## # # #????????????? | | ##???????# #??????????# ## # # #######??????? | | #???????# #???????????? !# """""#??????? | | #########u###############+### "" ""#??????? | | # """"""""""" "#??????? | | + "" "T"" > ""#??????? | | # p ""#??????? | | # """" #### "" ""#??????? | | ]# """" #??#T """""#??????? | | # """" #??## # # #######??????? | | ## """" o #???# # # #????????????? | | #???#######????????????? | | #??????????????????????? | | @#??????????????????????? | | ##########^##### ######;####???????????????????? | | #???????#+#???# # = ! #???????????????????? | | "#????????????# # #???????????????????? | | ##????????????+ " / #???????????????????? | | #?????????????# # xp #???????????????????? | | #?????????????# ######/##p########????????????? | | #????????????## #????#h##Y #????????????? | | #????????????# ##### ## x #????????????? | | #????????????# # #????????????? | | #????????????+ ph #????????????? | | ##????????????# # ] #????????????? | | ??????????????# ######## #????????????? | | ??????????????######??????## ##???????????? | | ??????????????????????????#" "#???????????? | | ??????????????????????????## ! [ ##???????????? | | ???????????????????????????##"#######????????????? | | ????????????????????????????###??????????????????? | | ?????????????????????????????????????????????????? | | ?????????????????????????????????????????????????? | | ?????????????????????????????????????????????????? | | ?????????????????????????????????????????????????? | | ?????????????????????????????????????????????????? | | ?????????????????????????????????????????????????? | | ?????????????????????????????????????????????????? | +----------------------------------------------------+ Best States ------------- Heat Dissipation 46 Energy Generation 19 Energy Capacity 500 Matter Stores 300 Matter Capacity 300 Sight Range 22 Robot Scan Range 20 Terrain Scan Density 160 Jamming Range 16 Cloak Strength 2 Armor Coverage 225 Phase Shifting 10 Evasion (%) 73 Melee Accuracy 12 Target Analysis 11 Recoil Reduction 4 Offensive Hacking 66 Defensive Hacking 38 Item Schematics ----------------- Hacking Suite | -9/Materials | Scanalyzed Sensor Array | -9/Materials | Hacked Lgt. Nuclear Core | -8/Materials | Scanalyzed System Shield | -6/Factory | Hacked Imp. Hacking Suite | -5/Factory | Hacked Adv. Hacking Suite | -5/Factory | Hacked Adv. System Shield | -4/Factory | Hacked Q-thruster | -4/Factory | Hacked Cld. Cesium-ion Thruster | -4/Factory | Hacked Imp. Remote Datajack | -4/Factory | Scanalyzed Mni. Drone Bay | -4/Factory | Scanalyzed Exp. Sensor Array | -4/Factory | Scanalyzed Imp. VTOL Module | -4/Factory | Scanalyzed Robot Schematics ------------------ B-48 Gladiator | -5/Factory | Hacked P-70 Sage | -5/Factory | Hacked M-36 Artificer | -4/Factory | Hacked Fabricated ------------ Hacking Suite | x1 | -7/Factory Adv. Hacking Suite | x1 | -5/Factory Imp. Hacking Suite | x1 | -4/Factory Imp. Hacking Suite | x1 | -4/Factory Imp. Hacking Suite | x1 | -3/Research Imp. Hacking Suite | x1 | -3/Research Alien Tech Used ----------------- None Achievements -------------- Below Omniscient Cartographer Prolific Hacker We Are Legion root@ Challenges ------------ None Game ------ Seed IonicGlidesysProcessor Manual? 0 Play Time 04:44:24 Cumulative 43.0 hours Start 2022.05.12 @ 21:10:20 End 2022.05.13 @ 23:22:47 Sessions 3 Manual Loads 0 Difficulty Rogue Special Mode None Game No. 39 Rogue 39 Adventurer 0 Explorer 0 Win Type - Total 0 Types 0/0/0/0/0/0/0/0/0 Lore% 28 Gallery% 42 Achievement% 29 Wizard Run 0 Options --------- ASCII 0 Keyboard 1 Movement Numpad Keybinds 0 Fullscreen 1 Font 36/Smallcaps Map View 76x50 Tactical HUD 1 Map Filters NONE Filters NONE Steam 1 RUN: f6a0fd7a-6b5c-4ccd-a619-0ffea59674c7